bitfinex/quotes_ETHUSD_20260228
["timestamp","ask_amount","ask_price","bid_price","bid_amount"]
[1772280405140,0.001,1868.9,1868.6,5.64100672]
[1772280406772,2.62467562,1869.1,1868.8,0.44672666]
[1772280407975,2.62467562,1869.3,1869.0,0.43807379]
[1772280408269,0.001,1869.4,1869.1,4.16510604]
[1772280409644,0.001,1869.4,1869.2,1.33747057]
[1772280409843,2.62567562,1869.4,1869.2,1.33747057]
[1772280410038,2.62567562,1869.4,1869.1,1.33748722]
[1772280412786,1.33716463,1869.7,1869.2,0.39561555]
[1772280412787,2.62467562,1869.6,1869.2,0.39561555]
[1772280412989,2.62467562,1869.8,1869.2,0.39561555]
[1772280413342,2.62467562,1869.8,1869.5,0.74419155]
[1772280413545,2.62467562,1869.8,1869.3,0.39561555]
[1772280413546,2.62467562,1869.8,1869.7,0.74419155]
[1772280414469,2.62467562,1869.8,1869.5,0.74419155]
[1772280416148,2.62467562,1870.0,1869.7,0.74419155]
[1772280417287,2.62467562,1870.0,1869.6,4.86919808]
[1772280417485,2.62467562,1870.3,1869.8,1.11603716]
[1772280417773,2.62467562,1870.2,1869.7,1.11603716]
[1772280418575,2.62467562,1870.2,1869.7,3.53205069]
[1772280418877,2.62467562,1870.1,1869.4,2.463]
[1772280419075,2.62467562,1870.1,1869.4,3.80032601]
[1772280419273,2.62467562,1870.1,1869.4,6.21633954]
[1772280420164,2.62467562,1870.1,1869.4,2.41601353]
[1772280420352,2.62467562,1870.1,1869.3,4.86939812]
[1772280420685,2.62467562,1870.1,1869.2,6.21643811]
[1772280420877,2.62467562,1869.8,1869.0,7.58362075]
[1772280421182,2.62467562,1869.7,1869.0,2.41601353]
[1772280421760,2.62467562,1869.7,1868.9,0.0011]
[1772280422181,2.62467562,1869.7,1868.9,1.33877736]
[1772280422372,2.62467562,1869.7,1868.9,3.75479089]
[1772280422962,2.62467562,1869.5,1868.9,3.75479089]
[1772280424976,2.62467562,1869.4,1868.9,3.75479089]
[1772280425788,2.62467562,1869.4,1869.0,2.41601353]
[1772280426082,1.33732018,1869.5,1869.0,2.41601353]
[1772280426083,1.33832018,1869.5,1869.0,2.41601353]
[1772280426288,3.9629958,1869.5,1869.0,2.41601353]
[1772280427088,3.9629958,1869.5,1869.0,1.33760453]
[1772280427290,2.62467562,1870.5,1869.5,2.41601353]
[1772280427586,2.62467562,1870.5,1869.6,2.41601353]
[1772280429168,2.62467562,1870.3,1869.7,2.41601353]
[1772280430666,5.34644995,1870.5,1869.8,2.47291367]
[1772280430667,2.35529795,1870.5,1869.8,2.47291367]
[1772280430878,3.69185111,1870.5,1869.8,2.47291367]
[1772280431458,3.69185111,1870.5,1870.0,2.47291367]
[1772280431459,2.35529795,1870.5,1870.0,2.47291367]
[1772280431659,2.35529795,1870.4,1869.7,2.47291367]
[1772280431958,2.35529795,1870.4,1869.4,2.47291367]
[1772280432158,2.35529795,1870.2,1869.0,3.81047829]
[1772280432357,5.21259911,1870.3,1869.1,2.47291367]
[1772280432358,2.35529795,1870.0,1869.1,2.47291367]
[1772280433789,1.33696989,1869.9,1869.2,1.33747057]
[1772280434125,2.35529795,1869.8,1869.1,2.47291367]
[1772280434412,2.35529795,1869.8,1869.1,3.81045236]
[1772280434615,2.35529795,1869.8,1869.1,2.47291367]
[1772280434908,2.35529795,1869.8,1869.1,3.81044612]
[1772280435407,2.35529795,1869.8,1868.9,0.0011]
[1772280435606,2.35529795,1869.8,1868.9,1.33874004]
[1772280435780,2.35529795,1869.6,1869.1,1.33754213]
[1772280436612,2.35529795,1869.6,1869.0,3.81047113]
[1772280438016,3.6925096,1869.6,1869.0,3.81157113]
[1772280438800,2.35529795,1869.5,1869.0,0.0011]
[1772280439005,2.35529795,1869.5,1868.8,0.0011]
[1772280439314,1.33721165,1869.6,1868.2,1.33928605]
[1772280439315,2.35529795,1869.2,1868.2,1.33928605]
[1772280439483,2.35529795,1869.2,1868.2,0.0011]
[1772280439993,2.35529795,1869.0,1868.2,0.0011]
[1772280441991,5.35016853,1869.2,1868.5,5.21259911]
[1772280441992,2.35529795,1869.2,1868.5,5.21259911]
[1772280442195,2.35529795,1869.2,1868.3,4.06691367]
[1772280443128,2.35529795,1869.2,1868.3,2.47291367]
[1772280443314,2.35529795,1869.2,1868.2,0.0011]
[1772280443315,2.35529795,1869.1,1868.2,0.0011]
[1772280444112,2.35529795,1868.9,1868.2,0.0011]
[1772280446900,3.69305479,1868.8,1868.2,0.0011]
[1772280447731,3.69305479,1868.8,1868.2,2.47401367]
[1772280448605,2.35529795,1868.7,1868.2,0.0011]
[1772280448932,2.35529795,1868.5,1868.2,0.0011]
[1772280449101,2.35529795,1868.5,1868.0,0.0011]
[1772280450828,2.35529795,1868.5,1868.1,0.0011]
[1772280451130,1.33804324,1868.4,1868.1,0.0011]
[1772280452031,2.35529795,1868.4,1868.1,0.0011]
[1772280452403,1.3380281,1868.5,1868.1,0.0011]
[1772280452935,1.3380281,1868.5,1868.1,2.47401367]
[1772280453331,2.677,1868.7,1868.2,2.47291367]
[1772280454013,1.33780594,1868.8,1868.2,2.47291367]
[1772280455029,5.35089882,1868.9,1868.2,1.33813735]
[1772280455218,5.35089882,1868.9,1868.3,2.47291367]
[1772280455751,7.70619677,1868.9,1868.3,2.47291367]
[1772280458253,2.35529795,1868.8,1868.1,2.47401367]
[1772280460233,2.35529795,1868.8,1868.1,3.812266]
[1772280460234,3.69312638,1868.7,1868.1,3.812266]
[1772280460431,8.02838028,1869.1,1868.3,2.37574558]
[1772280460432,2.35529795,1868.9,1868.3,2.37574558]
[1772280462056,2.35529795,1868.9,1868.2,3.83]
[1772280463135,2.29844682,1868.7,1868.2,3.8311]
[1772280463959,2.29844682,1868.7,1868.2,0.0011]
[1772280464332,2.29844682,1868.7,1868.2,2.4324216]
[1772280465226,2.29844682,1868.7,1868.0,9.18331612]
[1772280465446,1.33875684,1868.8,1868.0,9.18331612]
[1772280465447,1.33881724,1868.8,1868.2,0.30493843]
[1772280465873,3.65053006,1868.8,1868.2,0.30493843]
[1772280466232,0.001,1868.8,1868.2,0.30493843]
[1772280466432,0.001,1868.8,1868.2,0.58982245]
[1772280466658,3.64976614,1869.1,1868.2,0.58882245]
[1772280466832,2.31221282,1869.0,1868.2,0.58882245]
[1772280467536,5.35009303,1869.2,1868.4,0.58181297]
[1772280467537,3.64968339,1869.2,1868.4,0.58181297]
[1772280468843,3.64968339,1869.2,1868.3,6.55071397]
[1772280468844,2.31221282,1869.1,1868.3,6.55071397]
[1772280469032,2.31221282,1869.1,1868.4,0.57479577]
[1772280469962,3.64982484,1869.1,1868.5,1.90579311]
[1772280470562,3.64982484,1869.1,1868.6,0.56089026]
[1772280470745,3.64976195,1869.1,1868.6,0.56089026]
[1772280471141,2.31221282,1869.1,1868.6,0.56089026]
[1772280471346,3.6497631,1869.1,1868.6,0.56089026]
[1772280471755,2.31221282,1869.1,1868.6,0.56089026]
[1772280471952,3.64975867,1869.1,1868.6,0.56089026]
[1772280473059,3.64975867,1869.1,1868.6,1.89875935]
[1772280474564,3.64961758,1869.3,1868.7,0.53360823]
[1772280474759,3.64961265,1869.3,1868.7,0.53360823]
[1772280475150,0.001,1869.1,1868.8,1.87136507]
[1772280476448,0.001,1869.1,1868.8,0.53360823]
[1772280477145,0.001,1869.1,1868.9,1.85792046]
[1772280477351,0.001,1869.5,1869.1,0.51258531]
[1772280479480,0.001,1869.5,1868.7,0.49942787]
[1772280479481,2.31371282,1869.5,1868.7,0.49942787]
[1772280481576,2.31271282,1869.3,1868.7,1.83721272]
[1772280483682,2.31371282,1869.5,1869.0,4.19581251]
[1772280485196,2.31371282,1869.5,1869.1,0.46712228]
[1772280485556,2.31371282,1869.5,1869.2,1.33747057]
[1772280486183,2.31271282,1869.4,1868.9,4.00761599]
[1772280486390,2.31271282,1869.4,1868.9,4.00768408]
[1772280486698,2.31271282,1869.4,1868.9,2.67]
[1772280486855,2.31271282,1869.4,1868.9,4.00768151]
[1772280487663,0.001,1869.2,1868.9,4.00768151]
[1772280488657,0.001,1869.5,1869.1,0.44191908]
[1772280488857,0.001,1869.5,1869.0,0.44191908]
[1772280489060,0.001,1869.5,1869.1,0.44191908]
[1772280489758,0.001,1869.5,1869.2,1.33747057]
[1772280490361,2.31271282,1869.9,1869.3,0.42746401]
[1772280491789,2.31271282,1869.9,1869.5,1.33725595]
[1772280495207,2.31271282,1869.9,1869.3,5.34946888]
[1772280495208,2.31271282,1869.8,1869.3,5.34946888]
[1772280495785,2.31271282,1869.8,1869.3,5.74671631]
[1772280498212,2.31271282,1869.8,1869.4,0.38538804]
[1772280500219,2.31271282,1869.8,1869.5,1.33725595]
[1772280500220,0.001,1869.7,1869.5,1.33725595]
[1772280505727,0.001,1869.7,1869.5,1.6764862]
[1772280508731,2.31371282,1869.7,1869.3,2.67]
[1772280509027,2.31371282,1869.7,1869.3,4.00739207]
[1772280510030,2.31371282,1869.7,1869.3,2.67]
[1772280510031,2.31271282,1869.6,1869.3,2.67]
[1772280510901,2.31271282,1869.6,1869.0,1.33756884]
[1772280511228,2.31271282,1869.6,1869.0,1.53922959]
[1772280511526,2.29244594,1869.5,1869.0,1.53922959]
[1772280511733,2.29244594,1869.5,1869.4,0.0011]
[1772280512308,2.29344594,1869.7,1869.4,0.0011]
[1772280512629,2.29244594,1869.6,1869.4,0.0011]
[1772280513753,1.33811354,1869.7,1869.4,0.0011]
[1772280513754,0.001,1869.7,1869.4,0.0011]
[1772280513969,0.001,1869.7,1869.4,2.72730817]
[1772280514934,3.72230445,1868.7,1867.9,0.0011]
[1772280515141,2.29244594,1868.6,1867.9,0.0011]
[1772280515652,2.29244594,1868.3,1867.9,0.0011]
[1772280515871,2.29244594,1868.1,1867.5,0.0011]
[1772280516234,2.29244594,1868.1,1867.5,0.0066]
[1772280516435,2.29244594,1867.7,1867.5,0.0011]
[1772280516632,2.29244594,1867.7,1866.9,0.0011]
[1772280516837,13.87470544,1867.8,1866.7,0.0055]
[1772280516838,2.29244594,1867.2,1866.7,0.0055]
[1772280517039,2.29244594,1867.2,1866.4,0.0055]
[1772280517535,3.72230445,1867.1,1866.4,0.0055]
[1772280517740,2.29244594,1867.0,1866.4,0.0055]
[1772280518058,2.29244594,1866.8,1866.4,0.0055]
[1772280520137,2.29244594,1867.1,1866.4,3.72230445]
[1772280520442,2.29244594,1867.5,1866.6,3.72230445]
[1772280520653,2.29244594,1867.5,1866.7,2.445]
[1772280521274,2.29244594,1867.5,1866.8,3.72780445]
[1772280521584,2.29244594,1867.5,1866.8,6.11382362]
[1772280521952,3.73785282,1867.7,1867.1,1.33897488]
[1772280523074,2.46399163,1867.6,1867.1,1.33897488]
[1772280525079,2.46399163,1867.6,1867.2,0.0011]
[1772280526485,2.46399163,1867.6,1867.1,1.33897488]
[1772280526788,2.46399163,1867.6,1867.2,0.0055]
[1772280527862,2.46399163,1868.4,1867.4,3.72230445]
[1772280528095,2.46399163,1868.4,1867.3,4.8609214]
[1772280529316,2.46399163,1868.2,1867.4,1.33875977]
[1772280529801,2.46399163,1868.2,1867.5,0.0011]
[1772280531193,2.46399163,1868.2,1867.6,0.0044]
[1772280531392,2.46399163,1868.0,1867.6,0.0044]
[1772280532410,2.46399163,1868.0,1867.7,0.0011]
[1772280532600,2.46399163,1868.0,1867.6,0.0044]
[1772280533800,2.46399163,1867.8,1867.6,0.0044]
[1772280534000,2.46399163,1867.8,1867.3,1.33877305]
[1772280534001,2.46399163,1867.8,1867.2,2.441]
[1772280534200,2.46399163,1867.8,1867.3,0.0044]
[1772280536729,2.46399163,1867.6,1867.3,0.0044]
[1772280541521,1.33854473,1867.7,1867.3,0.0044]
[1772280542328,3.80253636,1867.7,1867.3,0.0044]
[1772280544646,2.46399163,1867.6,1867.3,0.0044]
[1772280546317,3.80246469,1867.8,1867.3,2.4203214]
[1772280546517,3.80217811,1868.2,1867.3,2.4203214]
[1772280546727,2.46399163,1868.1,1867.3,2.4203214]
[1772280548524,1.33832976,1868.0,1867.4,1.33875977]
[1772280548722,3.80230314,1868.1,1867.5,2.4159214]
[1772280548955,3.80230314,1868.1,1867.5,2.4203214]
[1772280549247,0.001,1868.0,1867.5,2.4203214]
[1772280550454,2.46499163,1868.0,1867.5,0.0044]
[1772280550661,2.43253435,1867.8,1867.4,0.0011]
[1772280550866,2.43253435,1867.8,1867.4,0.0055]
[1772280553763,1.33854473,1867.7,1867.4,0.0055]
[1772280553976,3.77107908,1867.7,1867.4,0.0055]
[1772280556450,3.77107908,1867.7,1867.4,0.0011]
[1772280556769,3.77107908,1867.7,1867.4,0.00011258]
[1772280560955,3.77107908,1867.7,1867.4,0.00451258]
[1772280561870,2.43253435,1867.6,1867.1,0.0011]
[1772280562271,2.43253435,1867.6,1867.5,0.0011]
[1772280562467,2.43253435,1867.6,1867.1,0.0011]
[1772280562673,2.43253435,1867.4,1867.1,0.0011]
[1772280563072,2.43253435,1867.4,1867.2,0.0011]
[1772280563277,2.43253435,1867.4,1867.2,0.00011257]
[1772280564550,0.001,1867.6,1867.2,2.46287913]
[1772280564750,0.001,1867.6,1867.3,3.80159802]
[1772280566185,0.001,1867.6,1867.3,2.46276656]
[1772280566371,0.001,1867.6,1867.2,0.00011257]
[1772280566984,0.001,1867.6,1867.2,1.33901456]
[1772280567153,0.001,1867.6,1867.2,3.80178112]
[1772280570766,0.001,1867.6,1867.3,2.46276656]
[1772280572294,2.43353435,1867.6,1866.8,2.4291]
[1772280572469,2.43353435,1867.6,1866.9,2.46276656]
[1772280574463,2.43253435,1867.4,1866.9,2.46276656]
[1772280574668,2.43253435,1867.4,1867.0,0.0011]
[1772280575486,2.43253435,1867.4,1867.1,0.00121257]
[1772280575871,1.33868808,1867.5,1867.1,2.46397913]
[1772280576183,3.77122243,1867.5,1867.1,2.46397913]
[1772280577511,2.43253435,1867.4,1867.1,0.00121257]
[1772280579592,2.43253435,1867.2,1866.9,0.0011]
[1772280579761,3.77134583,1867.4,1866.9,2.46386656]
[1772280581899,2.45939458,1867.3,1866.9,2.46386656]
[1772280582399,2.45939458,1867.3,1866.9,0.0011]
[1772280582767,2.45939458,1867.3,1866.9,3.78675212]
[1772280583011,2.45939458,1867.3,1866.9,1.34020764]
[1772280584493,2.30988621,1867.2,1866.9,0.0011]
[1772280586405,3.64879193,1867.2,1866.9,0.0011]
[1772280586601,2.30988621,1867.2,1867.0,0.0011]
[1772280595638,3.64868751,1867.4,1867.0,0.0011]
[1772280595850,1.33975447,1867.5,1867.0,2.44764448]
[1772280598543,1.33975447,1867.5,1867.2,2.44654448]
[1772280598746,0.001,1867.4,1867.2,2.44654448]
[1772280600653,0.001,1867.4,1867.3,2.44654448]
[1772280602227,0.001,1867.4,1867.3,0.33784474]
[1772280602736,0.001,1867.4,1867.1,0.60662946]
[1772280603352,0.001,1867.5,1867.4,0.60452946]
[1772280605136,0.001,1867.5,1867.2,0.66205827]
[1772280605343,2.31088621,1867.5,1867.1,0.0011]
[1772280606980,2.31088621,1867.5,1867.1,0.6589469]
[1772280607339,3.64961361,1867.5,1867.1,0.6589469]
[1772280607737,3.64958082,1867.5,1867.1,0.6589469]
[1772280608146,2.30988621,1867.4,1867.1,0.6589469]
[1772280609171,2.30988621,1867.4,1867.1,0.0011]
[1772280609341,2.30988621,1867.2,1867.1,0.0011]
[1772280609769,2.30988621,1867.3,1867.1,0.0011]
[1772280610469,2.30988621,1867.3,1867.2,0.0011]
[1772280611408,3.64871767,1867.3,1867.2,0.0011]
[1772280612783,2.43399866,1867.2,1867.0,0.0011]
[1772280613901,2.43399866,1867.1,1867.0,0.0011]
[1772280617713,2.43399866,1867.3,1867.0,0.0011]
[1772280620044,2.43399866,1867.2,1867.0,0.0011]
[1772280622099,3.77290687,1867.2,1867.0,0.0011]
[1772280622330,2.43399866,1867.2,1867.0,0.0011]
[1772280623217,2.43399866,1867.2,1867.1,0.0011]
[1772280623405,2.43499866,1867.2,1867.1,0.0011]
[1772280625334,3.77390183,1867.2,1867.1,0.0011]
[1772280629455,2.43399866,1867.1,1866.8,0.0011]
[1772280629754,2.43399866,1867.1,1866.7,0.61207646]
[1772280631551,2.43399866,1866.9,1866.7,0.0011]
[1772280632553,2.43399866,1867.0,1866.7,0.60764951]
[1772280634269,3.77390391,1867.2,1866.9,0.60193744]
[1772280634745,0.001,1867.2,1867.0,0.74645981]
[1772280634953,0.001,1867.2,1867.1,0.59964636]
[1772280635268,2.43499866,1867.4,1867.1,0.59964636]
[1772280635473,3.77375866,1867.4,1867.1,0.59964636]
[1772280635768,2.43499866,1867.4,1867.1,0.59964636]
[1772280635967,0.001,1867.2,1867.1,0.59964636]
[1772280638671,0.001,1867.4,1867.1,0.59964636]
[1772280638874,2.43499866,1867.4,1867.0,0.58936553]
[1772280639055,2.43399866,1867.2,1866.8,0.59046553]
[1772280639954,2.43399866,1867.2,1866.8,1.92965485]
[1772280640354,2.43399866,1867.2,1866.9,0.58704057]
[1772280642093,2.43399866,1867.2,1866.9,1.92614983]
[1772280642270,3.6286352,1867.4,1867.0,0.58341402]
[1772280642871,2.26065519,1867.3,1867.0,0.58341402]
[1772280645089,3.59949209,1867.3,1867.0,0.58341402]
[1772280645463,3.59949209,1867.3,1866.9,1.33910926]
[1772280645464,2.26065519,1867.2,1866.9,0.57494229]
[1772280648092,2.26165519,1867.2,1866.9,0.57494229]
[1772280648679,0.001,1867.2,1867.0,0.56774451]
[1772280649207,0.001,1867.4,1867.2,0.56674451]
[1772280651814,0.001,1867.4,1867.3,0.55956126]
[1772280651987,0.001,1867.4,1867.1,0.55956126]
[1772280652482,2.26165519,1867.4,1867.1,0.55956126]
[1772280655007,0.001,1867.4,1867.2,0.55231769]
[1772280656534,2.26165519,1867.4,1867.1,1.33893798]
[1772280656725,2.26165519,1867.4,1867.1,1.88642216]
[1772280658823,2.26165519,1867.4,1867.1,0.54748418]
[1772280659299,2.26065519,1867.2,1866.8,1.88292226]
[1772280659822,2.26065519,1867.2,1867.0,0.0011]
[1772280660920,2.26065519,1867.1,1866.8,0.0011]
[1772280662231,2.26065519,1867.1,1866.8,0.53767074]
[1772280662726,2.26065519,1867.1,1866.8,0.0011]
[1772280663537,2.26065519,1867.0,1866.8,0.0011]
[1772280667838,2.26065519,1866.9,1866.7,0.0011]
[1772280669219,2.26065519,1866.9,1866.5,1.67231926]
[1772280670214,2.26165519,1867.3,1866.6,1.44821438]
[1772280670422,2.22329837,1867.2,1866.7,0.32827621]
[1772280672229,2.22329837,1867.2,1866.8,1.66933656]
[1772280672465,2.22329837,1867.2,1866.8,1.67043656]
[1772280672630,0.001,1867.1,1866.8,1.67043656]
[1772280673356,0.001,1867.1,1866.8,1.34029005]
[1772280673527,0.001,1867.1,1866.8,1.66578012]
[1772280673858,0.001,1867.1,1866.8,1.34029005]
[1772280674052,0.001,1867.1,1866.9,0.32549007]
[1772280674450,0.001,1867.1,1866.8,1.34029005]
[1772280674451,2.22429837,1867.1,1866.8,0.32424579]
[1772280675564,2.22429837,1867.1,1866.8,0.0011]
[1772280679395,2.22429837,1867.1,1866.8,0.31486205]
[1772280679688,2.22429837,1867.1,1866.8,0.0011]
[1772280681674,2.22329837,1867.0,1866.8,0.0011]
[1772280683088,2.22329837,1867.0,1866.8,0.30551639]
[1772280683268,2.22329837,1867.0,1866.8,0.0011]
[1772280683597,2.22429837,1867.1,1866.8,0.3031811]
[1772280684099,0.001,1867.1,1866.9,1.64119942]
[1772280684394,0.001,1867.1,1866.9,0.3020811]
[1772280684703,2.22429837,1867.1,1866.9,0.3020811]
[1772280685200,2.22429837,1867.1,1866.8,1.63998438]
[1772280685695,0.001,1867.0,1866.8,1.63998438]
[1772280689193,0.001,1867.0,1866.8,0.30084491]
[1772280689395,2.22429837,1867.0,1866.8,0.0011]
[1772280696605,2.22274837,1866.9,1866.6,0.0011]
[1772280697201,2.22374837,1866.9,1866.6,0.0011]
[1772280698615,2.22274837,1866.8,1866.6,0.0011]
[1772280699702,0.001,1866.9,1866.6,0.25900197]
[1772280704032,0.001,1866.9,1866.6,1.59828397]
[1772280704727,2.22374837,1866.9,1866.6,1.59828397]
[1772280709725,2.22374837,1866.9,1866.6,0.0011]
[1772280714326,2.22374837,1866.9,1866.6,0.21528464]
[1772280716357,2.22374837,1866.9,1866.7,1.33926179]
[1772280716661,2.22374837,1866.9,1866.6,1.34042923]
[1772280718646,2.22374837,1866.9,1866.6,0.0011]
[1772280720726,2.22374837,1866.9,1866.7,0.0011]
[1772280720921,0.001,1866.8,1866.7,0.0011]
[1772280721154,2.22374837,1866.8,1866.7,0.0011]
[1772280722057,2.22219837,1866.7,1866.5,0.0011]
[1772280729744,0.001,1866.8,1866.7,0.16793788]
[1772280731632,0.001,1867.0,1866.8,0.16101671]
[1772280731837,0.001,1867.0,1866.9,0.90769254]
[1772280732034,0.001,1867.0,1866.9,0.16101671]
[1772280732940,0.001,1867.0,1866.9,0.90769254]
[1772280733148,0.001,1867.0,1866.9,2.24681086]
[1772280733665,0.001,1867.0,1866.9,1.50013503]
[1772280734134,0.001,1867.0,1866.9,2.24681086]
[1772280734534,0.001,1867.0,1866.9,1.50013503]
[1772280735144,0.001,1867.0,1866.7,3.14367583]
[1772280735145,2.1760726,1867.0,1866.7,1.49167935]
[1772280735776,2.1770726,1867.1,1866.8,2.098711]
[1772280737375,2.1770726,1867.1,1866.8,3.4378875]
[1772280737578,2.1770726,1867.1,1866.7,1.33923453]
[1772280738377,2.1770726,1867.1,1866.7,3.43794553]
[1772280739047,2.1770726,1867.1,1866.8,2.098711]
[1772280739865,0.001,1867.1,1866.9,2.098711]
[1772280740643,2.1770726,1867.1,1866.9,2.098711]
[1772280741544,2.1770726,1867.1,1866.8,2.098711]
[1772280742144,2.1760726,1867.0,1866.7,2.4]
[1772280742367,2.1760726,1867.0,1866.6,3.43909519]
[1772280742563,2.1760726,1867.0,1866.6,5.83909519]
[1772280743277,2.1760726,1867.0,1866.7,2.098711]
[1772280744573,2.1760726,1867.0,1866.8,1.34029005]
[1772280744958,2.1770726,1867.0,1866.8,1.34029005]
[1772280745159,2.1770726,1867.0,1866.8,0.0011]
[1772280753813,2.1760726,1866.9,1866.8,0.0011]
[1772280755219,3.51519092,1866.9,1866.8,0.0011]
[1772280756490,2.1760726,1866.9,1866.8,0.0011]
[1772280757088,2.1770726,1866.9,1866.8,0.0011]
[1772280765133,0.001,1866.9,1866.8,0.0011]
[1772280765319,0.001,1866.9,1866.8,2.11343255]
[1772280766034,0.001,1866.9,1866.8,3.4526226]
[1772280768038,0.001,1866.9,1866.8,2.11343255]
[1772280769818,0.001,1866.9,1866.8,0.0011]
[1772280773259,0.001,1866.9,1866.8,2.11343255]
[1772280773554,0.001,1867.0,1866.9,2.11233255]
[1772280775370,0.001,1867.0,1866.9,3.45145087]
[1772280778164,0.001,1867.0,1866.9,2.11233255]
[1772280778483,2.20635054,1867.3,1867.0,2.11233255]
[1772280780348,2.20635054,1867.3,1867.0,3.45137258]
[1772280782682,2.20635054,1867.3,1867.1,2.85900838]
[1772280782683,0.001,1867.3,1867.1,2.85900838]
[1772280782889,0.001,1867.3,1867.2,2.11233255]
[1772280785007,0.001,1867.3,1867.2,3.45123572]
[1772280792079,0.001,1867.5,1867.2,1.33890317]
[1772280792303,2.06398859,1868.6,1867.7,1.11901783]
[1772280792457,5.35105648,1868.8,1867.8,4.52112458]
[1772280792458,2.06398859,1868.4,1867.8,4.52112458]
[1772280792640,2.06398859,1868.2,1867.7,1.348]
[1772280793770,2.06398859,1868.2,1867.8,2.09512458]
[1772280794072,2.06398859,1868.2,1867.7,1.348]
[1772280794272,2.06398859,1868.9,1868.2,2.09512458]
[1772280794472,2.06398859,1868.9,1868.3,2.09512458]
[1772280794765,2.06398859,1868.9,1868.3,4.52612458]
[1772280796372,2.06398859,1868.8,1868.3,5.86417652]
[1772280797666,2.06398859,1868.8,1868.3,3.43317652]
[1772280798460,2.06398859,1868.8,1868.4,2.09512458]
[1772280798855,2.06398859,1868.8,1868.2,2.09512458]
[1772280798856,2.06398859,1868.7,1868.2,2.09512458]
[1772280799053,2.06398859,1868.7,1867.9,5.86447554]
[1772280799255,2.45677508,1868.8,1867.9,5.86447554]
[1772280799256,2.06398859,1868.5,1867.9,5.86447554]
[1772280799457,2.06398859,1868.7,1868.0,2.09512458]
[1772280799701,2.06398859,1868.7,1868.2,2.09512458]
[1772280801490,2.06398859,1868.6,1868.2,2.09512458]
[1772280801680,2.06398859,1868.6,1868.1,1.33822089]
[1772280801681,2.06398859,1868.6,1868.1,3.43334547]
[1772280801989,2.06398859,1868.5,1867.9,4.52412458]
[1772280802289,2.06398859,1868.6,1867.9,2.09512458]
[1772280803365,2.06398859,1868.4,1867.9,3.43346941]
[1772280805760,2.06398859,1868.4,1868.2,0.0011]
[1772280809702,2.06398859,1868.3,1868.2,0.0011]
[1772280811485,2.06498859,1868.7,1868.3,2.09512458]
[1772280813300,2.06498859,1868.7,1868.4,1.33804324]
[1772280813906,2.06498859,1868.7,1868.3,3.43318047]
[1772280817397,2.06398859,1869.4,1868.7,2.09512458]
[1772280817912,2.06398859,1869.2,1868.6,4.33112458]
[1772280819294,2.06398859,1869.2,1868.7,1.33782843]
[1772280819598,2.06398859,1869.1,1868.7,1.33782843]
[1772280819910,2.06398859,1869.1,1868.7,3.43295301]
[1772280820684,2.06398859,1869.1,1868.8,2.08180845]
[1772280821304,2.06398859,1869.1,1868.8,3.41952615]
[1772280821486,2.06398859,1869.1,1868.6,7.43324391]
[1772280822295,2.06398859,1869.1,1868.5,4.89091786]
[1772280822296,2.04995294,1869.0,1868.5,2.08180845]
[1772280823511,2.04995294,1869.0,1868.6,1.33790003]
[1772280824094,2.04995294,1869.0,1868.5,3.41972286]
[1772280824613,1.3376167,1869.0,1868.5,3.41972286]
[1772280824799,2.19343261,1868.9,1868.5,3.41972286]
[1772280825414,2.19343261,1868.9,1868.6,2.00672473]
[1772280826515,2.19343261,1868.9,1868.6,3.34460527]
[1772280829924,1.33754407,1869.1,1868.4,3.34583225]
[1772280829925,2.19343261,1868.8,1868.4,3.34583225]
[1772280830120,2.19343261,1868.8,1868.4,0.0011]
[1772280830795,2.45670753,1868.9,1868.4,0.0011]
[1772280830796,2.19343261,1868.6,1868.4,0.0011]
[1772280837809,2.19343261,1868.5,1868.4,0.0011]
[1772280845559,2.19343261,1868.4,1868.1,0.0011]
[1772280845855,2.08331379,1868.5,1868.0,0.0011]
[1772280845856,2.19343261,1868.2,1868.0,0.0011]
[1772280846054,2.19343261,1868.2,1868.0,1.33942711]
[1772280846224,2.19343261,1868.5,1868.0,3.34615184]
[1772280846428,2.19343261,1868.5,1868.1,2.00672473]
[1772280846926,2.19343261,1868.4,1868.0,3.34615184]
[1772280847954,2.19343261,1868.5,1868.1,0.74534216]
[1772280848131,2.19343261,1868.5,1868.2,2.00672473]
[1772280850841,2.19343261,1868.5,1868.0,1.33942584]
[1772280850842,2.19343261,1868.5,1868.1,2.20650485]
[1772280852839,2.07655654,1868.3,1868.0,0.0011]
[1772280854978,2.07655654,1868.3,1867.9,0.0011]
[1772280854979,2.07655654,1868.1,1867.9,0.0011]
[1772280861475,2.07655654,1868.0,1867.9,0.0011]
[1772280862865,2.07655654,1868.1,1867.9,0.0011]
[1772280864471,3.41472084,1868.3,1867.9,2.20760485]
[1772280865041,2.07655654,1868.2,1867.9,2.20760485]
[1772280866592,0.001,1869.3,1868.2,2.20650485]
[1772280866593,0.001,1868.8,1868.2,2.20650485]
[1772280866888,2.07655654,1869.1,1868.5,2.95184701]
[1772280867480,2.07655654,1868.9,1868.5,2.95184701]
[1772280867874,2.07655654,1868.9,1868.5,2.20650485]
[1772280868079,2.07655654,1868.9,1868.4,2.20650485]
[1772280868288,2.07755654,1868.8,1868.4,2.20650485]
[1772280868460,2.07655654,1868.8,1868.4,2.20650485]
[1772280868880,2.07655654,1868.9,1868.5,2.95184701]
[1772280870678,2.07655654,1868.7,1868.2,2.20650485]
[1772280870876,2.07655654,1868.5,1868.1,2.95184701]
[1772280872193,2.07655654,1868.5,1868.1,4.29010094]
[1772280873400,2.07655654,1868.5,1868.1,2.95184701]
[1772280873594,3.41452963,1868.5,1868.1,2.95184701]
[1772280874278,2.07655654,1868.5,1868.1,4.29009969]
[1772280874612,2.07655654,1868.5,1868.3,2.95184701]
[1772280874613,0.001,1868.5,1868.3,2.95184701]
[1772280875183,2.07655654,1868.7,1868.4,2.20650485]
[1772280875378,2.07755654,1868.6,1868.2,2.20650485]
[1772280876211,2.07755654,1868.6,1868.2,3.54468456]
[1772280877820,0.001,1868.5,1868.3,2.20650485]
[1772280878021,2.07655654,1868.7,1868.3,2.20650485]
[1772280878209,0.001,1868.6,1868.3,2.20650485]
[1772280880408,2.07755654,1868.6,1868.3,2.20650485]
[1772280882787,2.07755654,1868.6,1868.3,3.54461308]
[1772280883079,2.07655654,1868.6,1868.3,3.54461308]
[1772280883390,0.001,1868.5,1868.3,3.54461308]
[1772280884515,0.001,1868.5,1868.3,2.20650485]
[1772280884696,2.07655654,1868.6,1868.3,2.20650485]
[1772280884896,0.001,1868.5,1868.3,2.20650485]
[1772280885203,2.03714067,1868.5,1868.2,1.33924952]